bitfinex/quotes_SOLUSD_20240703
["timestamp","ask_amount","ask_price","bid_price","bid_amount"]
[1720046375446,13.58,141.05,141.02,17.7273]
[1720046377745,7.0892,141.06,140.99,17.7307]
[1720046377746,20.671,141.03,140.99,17.7307]
[1720046377946,13.58,141.02,140.99,17.7307]
[1720046378356,20.6715,141.02,140.98,15.2779]
[1720046378540,20.6715,141.02,140.98,22.371]
[1720046379137,20.6715,141.02,140.98,7.0931]
[1720046379341,13.58,141.01,140.97,7.0935]
[1720046381542,20.6718,141.01,140.96,24.8294]
[1720046381745,13.58,141.01,140.97,7.0935]
[1720046382150,20.6711,141.02,140.98,7.0931]
[1720046382343,7.0911,141.02,140.97,20.6736]
[1720046384244,7.0911,141.02,140.97,7.0936]
[1720046385172,7.0917,141.01,140.97,7.0936]
[1720046395364,20.6717,141.01,140.97,7.0936]
[1720046395681,13.58,141.01,140.97,7.0936]
[1720046396695,20.6718,141.01,140.97,7.0936]
[1720046398673,13.58,141.01,140.97,7.0936]
[1720046398985,7.0913,141.02,140.97,7.0936]
[1720046399173,7.0907,141.03,140.98,7.093]
[1720046399380,7.0912,141.02,140.98,7.093]
[1720046399682,0.17,141.04,140.99,7.0926]
[1720046399890,7.091,141.03,140.98,24.8258]
[1720046400068,13.58,141.02,140.99,7.0926]
[1720046400263,7.091,141.03,140.98,17.7327]
[1720046400264,13.58,141.03,141.0,7.0921]
[1720046400462,13.58,141.04,141.0,7.0921]
[1720046400671,20.6701,141.04,141.0,7.0921]
[1720046400887,13.58,141.03,141.0,7.0921]
[1720046401766,7.0903,141.04,140.99,7.0926]
[1720046401969,13.58,141.03,140.99,7.0926]
[1720046404086,20.6707,141.03,140.99,7.0926]
[1720046405586,13.58,141.03,140.99,7.0926]
[1720046405787,20.6707,141.03,140.99,7.0926]
[1720046409697,20.6718,141.01,140.97,44.2836]
[1720046409886,13.58,141.01,140.97,44.2836]
[1720046411584,7.0913,141.02,140.97,44.2836]
[1720046411777,7.0913,141.02,140.98,7.093]
[1720046413379,20.6713,141.02,140.98,7.093]
[1720046414211,13.58,141.02,140.98,7.093]
[1720046416394,7.0908,141.03,140.98,7.093]
[1720046416600,20.6708,141.03,140.98,7.093]
[1720046417004,7.0908,141.03,140.98,7.093]
[1720046417181,20.6708,141.03,140.98,7.093]
[1720046419383,13.58,141.02,140.98,7.093]
[1720046420190,7.0908,141.03,140.98,7.093]
[1720046420390,13.58,141.02,140.98,7.093]
[1720046422308,7.0912,141.02,140.98,7.093]
[1720046422609,20.6712,141.02,140.98,7.093]
[1720046423507,7.0912,141.02,140.98,7.093]
[1720046424487,20.6708,141.03,140.98,7.093]
[1720046424695,20.6708,141.03,140.98,20.673]
[1720046426286,7.091,141.03,140.99,20.6726]
[1720046426689,7.091,141.03,140.99,7.0926]
[1720046427497,20.671,141.03,140.99,7.0926]
[1720046428588,7.0912,141.02,140.98,20.6731]
[1720046435513,7.0912,141.02,140.98,7.0931]
[1720046439805,7.0912,141.02,140.97,75.5977]
[1720046440014,20.6712,141.02,140.97,62.0177]
[1720046440328,7.0912,141.02,140.97,75.5977]
[1720046440500,20.6712,141.02,140.97,62.0177]
[1720046441902,20.6712,141.02,140.98,7.0931]
[1720046446004,7.092,141.01,140.97,31.3138]
[1720046446213,7.0918,141.01,140.96,20.6741]
[1720046446504,20.6718,141.01,140.96,20.6741]
[1720046448004,7.0922,141.0,140.96,20.6741]
[1720046449632,7.0922,141.0,140.96,7.0941]
[1720046449823,20.6722,141.0,140.96,7.0941]
[1720046450521,7.0922,141.0,140.96,7.0941]
[1720046451704,20.6718,141.01,140.96,7.0941]
[1720046453633,20.6718,141.01,140.97,7.0936]
[1720046454737,20.6718,141.01,140.96,24.8292]
[1720046457817,20.6718,141.01,140.96,38.4092]
[1720046460119,20.6718,141.01,140.97,7.0936]
[1720046460313,7.0918,141.01,140.97,7.0936]
[1720046460520,20.6718,141.01,140.97,7.0936]
[1720046462323,7.0918,141.01,140.97,20.6736]
[1720046463218,13.58,141.03,140.98,20.6731]
[1720046463621,7.0915,141.02,140.98,13.58]
[1720046463822,7.0903,141.04,140.99,20.6723]
[1720046464454,7.0908,141.03,140.99,20.6723]
[1720046464752,7.0908,141.03,140.99,13.58]
[1720046464956,7.0908,141.03,140.98,38.4054]
[1720046465321,7.0912,141.02,140.98,38.4054]
[1720046465745,7.0907,141.03,140.99,23.4584]
[1720046465925,7.0907,141.03,141.0,45.0]
[1720046467932,7.0902,141.04,141.0,52.092]
[1720046468230,7.0902,141.04,141.0,58.58]
[1720046469919,13.58,141.05,140.95,15.3791]
[1720046470139,13.58,141.02,140.97,13.58]
[1720046470543,7.0923,141.0,140.97,13.58]
[1720046470746,18.0664,141.04,140.95,15.3791]
[1720046470937,7.0923,141.0,140.97,13.58]
[1720046471527,7.0923,141.0,140.96,7.0941]
[1720046471735,7.0923,141.0,140.97,13.58]
[1720046472149,7.0923,141.0,140.96,7.0941]
[1720046472349,7.0923,141.0,140.97,13.58]
[1720046475531,7.0917,141.01,140.97,20.6736]
[1720046476342,7.0917,141.01,140.98,13.58]
[1720046477734,7.0913,141.02,140.99,13.58]
[1720046477935,7.0913,141.02,140.98,13.58]
[1720046479739,7.0916,141.01,140.98,13.58]
[1720046490949,7.0913,141.02,140.98,13.58]
[1720046493966,7.0913,141.02,140.97,7.0936]
[1720046494168,7.0913,141.02,140.98,58.58]
[1720046494647,7.0913,141.02,140.99,13.58]
[1720046495266,7.0913,141.02,140.98,45.0]
[1720046495467,7.0913,141.02,140.98,58.58]
[1720046495865,7.0913,141.02,140.99,13.58]
[1720046497359,7.0913,141.02,140.98,58.58]
[1720046498252,7.0913,141.02,140.98,45.0]
[1720046498469,7.0913,141.02,140.98,58.58]
[1720046498860,20.6706,141.04,140.98,65.6727]
[1720046499074,7.0906,141.04,140.99,20.6726]
[1720046499255,7.0906,141.04,141.0,52.092]
[1720046499455,13.58,141.06,141.0,65.672]
[1720046499672,7.0902,141.04,141.0,58.58]
[1720046500051,7.0902,141.04,141.0,45.0]
[1720046500253,7.0902,141.04,141.0,58.58]
[1720046500569,7.0902,141.04,141.0,45.0]
[1720046506970,7.0902,141.04,141.0,52.092]
[1720046508754,20.6698,141.05,141.0,52.092]
[1720046509385,20.6698,141.05,141.0,65.672]
[1720046509554,20.6698,141.05,141.0,58.58]
[1720046509760,20.6698,141.05,141.01,7.0915]
[1720046510271,7.0898,141.05,141.01,7.0915]
[1720046510964,20.6698,141.05,141.01,7.0915]
[1720046514364,13.58,141.05,141.01,7.0915]
[1720046515174,29.45399343,141.1,141.0,76.31]
[1720046515463,13.58,141.05,141.01,7.0915]
[1720046515668,20.6701,141.05,141.0,24.8221]
[1720046515885,20.6704,141.04,141.0,24.822]
[1720046516290,7.0904,141.04,141.0,24.822]
[1720046516886,6.3893,141.05,140.96,17.7342]
[1720046517107,13.58,141.02,140.97,20.6736]
[1720046518074,7.0917,141.01,140.97,20.6736]
[1720046518374,20.6713,141.02,140.97,20.6736]
[1720046520295,20.6713,141.02,140.98,7.0931]
[1720046520680,7.0913,141.02,140.98,20.6731]
[1720046522178,7.0907,141.03,140.99,7.0926]
[1720046522376,20.8402,141.04,140.99,20.6726]
[1720046522691,20.6702,141.04,141.0,7.0921]
[1720046522985,7.0902,141.04,141.0,7.0921]
[1720046524276,7.0902,141.04,140.99,20.6726]
[1720046524877,20.6702,141.04,140.99,20.6726]
[1720046525297,7.0907,141.03,140.99,20.6726]
[1720046528299,20.6702,141.04,141.0,45.0]
[1720046529193,7.0902,141.04,141.0,58.58]
[1720046529897,20.6702,141.04,141.0,45.0]
[1720046533612,7.0902,141.04,141.0,58.58]
[1720046533809,7.0902,141.04,141.0,65.672]
[1720046534415,7.0898,141.05,141.0,65.672]
[1720046534583,7.0903,141.04,141.0,65.672]
[1720046535486,7.0898,141.05,141.0,65.672]
[1720046535798,20.6693,141.06,141.01,20.6714]
[1720046536000,20.6693,141.06,141.02,45.0]
[1720046539646,7.0885,141.08,141.04,13.58]
[1720046539790,7.0885,141.08,141.05,45.0]
[1720046540519,7.0878,141.09,141.05,45.0]
[1720046540822,7.0878,141.09,141.05,58.58]
[1720046541415,13.58,141.12,141.07,13.58]
[1720046541720,53.1324,141.16,141.06,23.62524746]
[1720046541721,20.6659,141.13,141.08,65.6681]
[1720046542629,7.0859,141.13,141.09,13.58]
[1720046544522,7.0859,141.13,141.1,13.58]
[1720046544851,7.0859,141.13,141.09,13.58]
[1720046545740,20.6659,141.13,141.08,65.6681]
[1720046546045,7.0859,141.13,141.08,65.6681]
[1720046546217,7.0859,141.13,141.09,13.58]
[1720046547044,7.0859,141.13,141.1,13.58]
[1720046547342,7.0859,141.13,141.09,13.58]
[1720046547539,7.0852,141.14,141.1,58.58]
[1720046547842,20.6652,141.14,141.1,45.0]
[1720046548348,7.0852,141.14,141.1,58.58]
[1720046550946,13.58,141.15,141.1,58.58]
[1720046550947,13.58,141.15,141.1,65.6668]
[1720046552237,20.6648,141.15,141.1,65.6668]
[1720046557654,7.0852,141.14,141.1,65.6668]
[1720046560542,7.0852,141.14,141.1,52.0868]
[1720046560747,7.0852,141.14,141.1,65.6668]
[1720046561129,7.0842,141.16,141.11,20.6665]
[1720046561336,7.0842,141.16,141.12,58.58]
[1720046561538,7.0842,141.16,141.12,65.6661]
[1720046562654,7.0836,141.17,141.12,65.6661]
[1720046562949,7.0841,141.16,141.12,65.6661]
[1720046564565,7.0841,141.16,141.12,52.0861]
[1720046564727,7.0841,141.16,141.12,65.6661]
[1720046566438,7.0838,141.17,141.13,13.58]
[1720046567349,7.0838,141.17,141.13,20.6655]
[1720046567548,7.0833,141.18,141.14,52.0851]
[1720046567754,20.6633,141.18,141.14,52.0851]
[1720046568653,7.0828,141.19,141.14,52.0851]
[1720046568857,13.58,141.18,141.14,52.0851]
[1720046569754,20.6628,141.19,141.14,65.6651]
[1720046572043,7.0828,141.19,141.14,65.6651]
[1720046572451,20.6628,141.19,141.14,65.6651]
[1720046572653,7.0828,141.19,141.14,65.6651]
[1720046572840,20.6628,141.19,141.14,65.6651]
[1720046573164,7.0828,141.19,141.14,65.6651]
[1720046573356,20.6628,141.19,141.14,65.6651]
[1720046573561,7.0828,141.19,141.14,65.6651]
[1720046573762,20.6628,141.19,141.14,65.6651]
[1720046573957,7.0828,141.19,141.14,65.6651]
[1720046574149,20.6628,141.19,141.14,65.6651]
[1720046575064,7.0828,141.19,141.15,13.58]
[1720046575265,7.0828,141.19,141.16,45.0]
[1720046575443,7.9201383,141.2,141.16,58.58]
[1720046583058,7.9201383,141.2,141.16,65.664]
[1720046583259,0.8380383,141.2,141.17,20.6635]
[1720046583464,0.8380383,141.2,141.18,45.0]
[1720046583650,0.8380383,141.2,141.18,52.0829]
[1720046583850,0.8380383,141.2,141.18,65.6629]
[1720046584353,0.8380383,141.2,141.18,58.58]
[1720046585768,0.8380383,141.2,141.19,13.58]
[1720046585971,0.8380383,141.2,141.19,58.58]
[1720046588775,0.8380383,141.2,141.19,45.0]
[1720046589681,0.8380383,141.2,141.19,58.58]
[1720046590761,0.8380383,141.2,141.19,45.0]
[1720046591775,0.8380383,141.2,141.19,52.0826]
[1720046595079,0.8380383,141.2,141.19,65.6626]
[1720046597755,0.8380383,141.2,141.19,45.0]
[1720046597958,0.8380383,141.2,141.19,65.6626]
[1720046598680,0.8380383,141.2,141.19,52.0826]
[1720046598879,0.8380383,141.2,141.19,65.6626]
[1720046602163,0.8380383,141.2,141.18,7.0831]
[1720046602870,0.8380383,141.2,141.18,20.6631]
[1720046605392,0.8380383,141.2,141.19,45.0]
[1720046606060,0.8380383,141.2,141.19,52.0826]
[1720046610464,0.8380383,141.2,141.19,65.6626]
[1720046616587,0.8380383,141.2,141.19,116.5354]
[1720046616769,0.8380383,141.2,141.19,116.7054]
[1720046617165,0.8380383,141.2,141.19,103.1254]
[1720046618991,22.4363,141.3,141.25,7.0791]
[1720046619172,13.58,141.29,141.25,7.0791]
[1720046619368,22.4363,141.3,141.25,7.0791]
[1720046619369,20.6575,141.3,141.26,7.0791]
[1720046619675,20.6562,141.32,141.27,65.6582]
[1720046620477,13.58,141.31,141.27,52.0782]
[1720046620886,20.6562,141.32,141.27,65.6582]
[1720046621091,7.0766,141.31,141.27,65.6582]
[1720046622079,17.6867,141.35,141.27,58.58]
[1720046622276,13.58,141.33,141.29,7.0775]
[1720046622471,14.4180383,141.34,141.29,20.6575]
[1720046622802,20.6557,141.33,141.28,38.3529]
[1720046623098,20.6557,141.33,141.29,7.0776]
[1720046623295,20.6557,141.33,141.28,24.7728]
[1720046623596,0.8380383,141.34,141.29,7.0775]
[1720046623782,14.4180383,141.34,141.3,45.0]
[1720046624388,7.9131383,141.34,141.3,45.0]
[1720046624593,21.4931383,141.34,141.3,45.0]
[1720046624798,21.4931383,141.34,141.3,52.0771]
[1720046625197,0.8380383,141.34,141.31,29.7178]
[1720046625494,0.8380383,141.34,141.33,7.0756]
[1720046625692,0.8380383,141.34,141.33,65.6556]
[1720046629996,0.8380383,141.34,141.33,86.9756]
[1720046631398,0.8380383,141.34,141.33,87.1456]
[1720046634384,0.8380383,141.34,141.33,100.7256]
[1720046634604,0.8380383,141.34,141.33,73.5656]
[1720046634902,0.8380383,141.34,141.33,141.4656]
[1720046635291,0.8380383,141.34,141.33,73.5656]
[1720046635505,0.8380383,141.34,141.33,141.4656]
[1720046636492,0.8380383,141.34,141.33,87.1456]
[1720046637102,16.4025,141.45,141.36,21.32]
[1720046637287,13.58,141.43,141.39,7.0723]
[1720046637489,7.0705,141.44,141.4,45.0]
[1720046637688,13.58,141.44,141.4,52.0717]
[1720046638197,7.0699,141.45,141.4,87.8432]
[1720046638402,7.0699,141.45,141.41,7.0715]
[1720046638403,20.6496,141.45,141.41,7.0715]
[1720046639190,7.0696,141.45,141.4,87.8434]
[1720046639397,7.0696,141.45,141.41,13.58]
[1720046640294,20.6492,141.46,141.42,45.0]
[1720046641307,20.6487,141.47,141.42,65.6511]
[1720046642230,7.0687,141.47,141.43,7.0706]
[1720046642390,13.58,141.47,141.44,45.0]
[1720046644113,20.6487,141.47,141.44,45.0]
[1720046644288,13.58,141.47,141.43,7.0702]
[1720046644493,13.58,141.47,141.44,52.07]
[1720046644817,7.9061383,141.48,141.44,52.07]
[1720046645126,21.4861383,141.48,141.44,52.07]
[1720046645618,14.4180383,141.48,141.44,52.07]
[1720046648015,0.8380383,141.48,141.44,52.07]
[1720046648193,14.4180383,141.48,141.44,52.07]
[1720046648618,0.8380383,141.48,141.45,7.0694]
[1720046648831,14.4180383,141.48,141.45,7.0694]
[1720046649037,0.8380383,141.48,141.45,7.0694]
[1720046653422,0.8380383,141.48,141.46,7.069]
[1720046654118,14.4180383,141.48,141.45,24.743]
[1720046654745,0.8380383,141.48,141.45,24.743]
[1720046654916,0.8380383,141.48,141.45,17.6736]
[1720046655118,0.8380383,141.48,141.45,31.2536]
[1720046655322,0.8380383,141.48,141.46,7.0689]
[1720046656624,0.8380383,141.48,141.45,24.743]
[1720046656824,7.9061383,141.48,141.44,52.07]
[1720046657048,21.4861383,141.48,141.43,13.58]
[1720046657243,14.4180383,141.48,141.44,7.07]
[1720046658837,14.4180383,141.48,141.44,31.2547]
[1720046658838,0.8380383,141.48,141.44,31.2547]
[1720046659043,0.8380383,141.48,141.46,7.0687]
[1720046660329,0.8380383,141.48,141.47,7.0686]
[1720046660937,0.8380383,141.48,141.47,28.9822]
[1720046661260,0.8380383,141.48,141.47,87.5622]
[1720046661926,57.42767111,141.52,141.49,17.6682]
[1720046662127,57.42767111,141.52,141.51,7.0666]
[1720046663937,57.42767111,141.52,141.46,53.0171]
[1720046664129,13.58,141.51,141.47,7.0684]
[1720046664329,20.6468,141.51,141.46,17.6722]
[1720046664632,20.6467,141.51,141.46,38.3211]
[1720046665268,57.76767111,141.52,141.43,17.6761]
[1720046665461,13.75,141.5,141.45,20.6496]
[1720046665838,13.58,141.49,141.45,7.0696]
[1720046666356,7.2373,141.5,141.45,20.6496]
[1720046666357,20.8173,141.5,141.45,20.6496]
[1720046667060,7.2373,141.5,141.45,7.0696]
[1720046667359,0.17,141.5,141.46,7.0689]
[1720046667861,13.75,141.5,141.46,7.0689]
[1720046668037,0.17,141.5,141.46,7.0689]
[1720046668351,0.17,141.5,141.47,7.0685]
[1720046668556,78.07397111,141.52,141.47,20.6485]
[1720046668853,13.75,141.51,141.47,7.0685]
[1720046670056,57.42767111,141.52,141.48,7.0681]
[1720046670246,57.42767111,141.52,141.49,7.0674]
[1720046670941,71.00767111,141.52,141.49,7.0674]
[1720046671838,57.42767111,141.52,141.49,7.0674]
[1720046674941,57.42767111,141.52,141.47,17.6709]
[1720046675247,57.42767111,141.52,141.48,20.6478]
[1720046676264,57.42767111,141.52,141.48,7.0678]
[1720046676560,57.42767111,141.52,141.48,20.6478]
[1720046676860,57.42767111,141.52,141.48,7.0678]
[1720046679748,71.00767111,141.52,141.48,7.0678]
[1720046679940,7.4069,141.51,141.46,7.0687]
[1720046680141,13.58,141.49,141.46,7.0687]
[1720046680346,7.4069,141.51,141.46,7.0687]
[1720046680655,7.0671,141.5,141.46,20.6487]
[1720046680857,20.9867,141.51,141.46,20.6487]
[1720046681057,0.34,141.51,141.46,13.58]
[1720046681364,0.34,141.51,141.47,20.6482]
[1720046681669,0.34,141.51,141.47,7.0682]
[1720046682172,7.4066,141.51,141.47,7.0682]
[1720046682469,20.9866,141.51,141.47,7.0682]
[1720046683572,13.92,141.51,141.47,7.0682]
[1720046683776,0.17,141.51,141.47,7.0682]
[1720046686688,0.17,141.51,141.48,7.0681]
[1720046689069,57.42767111,141.52,141.49,7.0674]
[1720046689387,0.17,141.51,141.49,7.0674]
[1720046690275,57.42767111,141.52,141.49,7.0674]
[1720046692788,57.42767111,141.52,141.5,7.0669]
[1720046693683,57.42767111,141.52,141.49,31.2486]
[1720046693866,57.42767111,141.52,141.51,7.0666]
[1720046694963,57.42767111,141.52,141.5,7.067]
[1720046695159,57.42767111,141.52,141.49,17.6686]
[1720046695363,57.42767111,141.52,141.5,7.067]
[1720046697663,57.42767111,141.52,141.51,7.0666]
[1720046697871,57.42767111,141.52,141.51,20.6466]
[1720046698283,57.42767111,141.52,141.51,7.0666]
[1720046701091,57.42767111,141.52,141.51,52.0666]
[1720046703082,57.42767111,141.52,141.51,7.0666]
[1720046703468,57.42767111,141.52,141.51,52.0666]
[1720046703791,57.42767111,141.52,141.51,7.0666]
[1720046704167,57.42767111,141.52,141.5,7.0669]
[1720046704480,71.00767111,141.52,141.49,17.6686]
[1720046704874,71.00767111,141.52,141.49,24.7361]
[1720046705074,57.42767111,141.52,141.49,24.7361]
[1720046705283,64.49407111,141.52,141.46,17.672]
[1720046705475,13.58,141.51,141.47,7.0683]
[1720046705887,57.42767111,141.52,141.48,7.068]
[1720046706087,13.58,141.51,141.48,7.068]
[1720046706470,13.58,141.51,141.47,7.0684]
[1720046706791,13.58,141.51,141.48,7.0679]
[1720046707087,57.42767111,141.52,141.48,7.0679]
[1720046707293,71.00767111,141.52,141.48,7.0679]
[1720046707493,57.42767111,141.52,141.48,7.0679]
[1720046707671,71.00767111,141.52,141.48,7.0679]
[1720046708070,57.42767111,141.52,141.49,7.0675]
[1720046708466,71.00767111,141.52,141.49,7.0675]
[1720046708891,71.00767111,141.52,141.48,24.7379]
[1720046710199,57.42767111,141.52,141.48,24.7379]
[1720046710400,71.00767111,141.52,141.48,24.7379]
[1720046711582,57.42767111,141.52,141.48,24.7379]
[1720046711780,71.00767111,141.52,141.48,24.7379]
[1720046712382,13.58,141.51,141.48,24.7379]
[1720046712797,1.58,141.51,141.48,24.7379]
[1720046716587,57.42767111,141.52,141.48,24.7379]
[1720046716789,13.58,141.51,141.48,24.7379]
[1720046717291,71.00767111,141.52,141.48,24.7379]
[1720046719817,71.00767111,141.52,141.49,7.0675]
[1720046725009,57.42767111,141.52,141.49,7.0675]
[1720046733790,57.42767111,141.52,141.48,24.7379]
[1720046733996,57.42767111,141.52,141.5,7.067]
[1720046734418,57.42767111,141.52,141.49,20.6474]
[1720046734596,57.42767111,141.52,141.49,7.0674]
[1720046735820,57.42767111,141.52,141.48,38.3179]
[1720046736322,57.42767111,141.52,141.48,24.7379]
[1720046736516,57.42767111,141.52,141.49,7.0675]
[1720046737217,57.42767111,141.52,141.49,20.6475]
[1720046737408,57.42767111,141.52,141.49,7.0675]
[1720046737608,57.42767111,141.52,141.48,38.3179]
[1720046738826,57.42767111,141.52,141.49,7.0675]
[1720046739432,57.42767111,141.52,141.49,20.6475]
[1720046741927,57.42767111,141.52,141.49,7.0675]
[1720046745702,57.42767111,141.52,141.49,20.6475]
[1720046746509,57.42767111,141.52,141.49,7.0675]
[1720046746906,57.42767111,141.52,141.49,20.6475]
[1720046751212,57.42767111,141.52,141.49,7.0675]
[1720046752407,57.42767111,141.52,141.5,24.7343]
[1720046752818,57.42767111,141.52,141.5,38.3143]
[1720046753714,57.42767111,141.52,141.5,24.7343]
[1720046754335,57.42767111,141.52,141.5,38.3143]
[1720046754718,57.42767111,141.52,141.5,24.7343]
[1720046761533,57.42767111,141.52,141.5,17.6674]
[1720046761729,57.42767111,141.52,141.5,24.7344]
[1720046763143,57.42767111,141.52,141.51,7.0666]
[1720046766332,57.42767111,141.52,141.5,24.7343]
[1720046767537,57.42767111,141.52,141.51,7.0666]
[1720046772853,57.42767111,141.52,141.5,17.6674]
[1720046773554,57.42767111,141.52,141.51,7.0666]
[1720046773740,57.42767111,141.52,141.5,24.7343]
[1720046774350,57.42767111,141.52,141.51,7.0666]
[1720046787457,57.42767111,141.52,141.5,24.7343]
[1720046793965,57.42767111,141.52,141.51,7.0666]
[1720046796058,57.42767111,141.52,141.51,52.0666]
[1720046796259,57.42767111,141.52,141.51,65.6466]
[1720046808871,57.42767111,141.52,141.51,103.4868]
[1720046809080,32.90509119,141.52,141.51,103.8268]
[1720046809270,22.1972,141.65,141.6,7.062]
[1720046809469,28.7176,141.65,141.53,35.3274]
[1720046809680,6.1134,141.6,141.48,7.3668455]
[1720046809973,13.58,141.52,141.45,7.0695]
[1720046810176,13.58,141.52,141.37,101.22983216]
[1720046810177,13.58,141.49,141.4,33.0595]
[1720046810384,16.5941,141.52,141.43,17.6756]
[1720046810385,7.0681,141.48,141.43,17.6756]
[1720046810595,7.0681,141.48,141.4,16.4654]
[1720046810596,13.58,141.46,141.4,7.072]
[1720046810873,13.58,141.46,141.34,7.488864]
[1720046810874,13.58,141.41,141.34,40.646]
[1720046811076,13.58,141.41,141.37,7.0735]
[1720046811375,6.1134,141.42,141.36,17.6842]
[1720046811678,13.58,141.4,141.36,24.7582]
[1720046811975,0.17,141.41,141.32,25.05702946]
[1720046812194,13.58,141.37,141.32,24.7653]
[1720046812376,7.0731,141.38,141.31,7.0761]
[1720046812570,0.17,141.39,141.33,13.58]
[1720046812772,6.1134,141.42,141.34,21.29]
[1720046812979,29.7187,141.46,141.4,7.0719]
[1720046813266,0.34,141.45,141.37,17.684]
[1720046813471,13.58,141.43,141.39,7.0721]
[1720046813680,13.58,141.42,141.38,52.073]
[1720046813886,13.58,141.42,141.38,7.073]
[1720046814184,13.58,141.42,141.39,7.0724]
[1720046814389,22.6495,141.46,141.4,17.6802]
[1720046814588,22.6495,141.46,141.42,7.0708]
[1720046814895,22.3841,141.51,141.45,13.58]
[1720046815190,0.8380383,141.62,141.48,13.58]
[1720046815191,22.6065,141.56,141.48,13.58]
[1720046815572,13.58,141.54,141.49,20.6475]
[1720046815787,13.58,141.54,141.48,17.6703]
[1720046815788,7.0651,141.54,141.48,17.6703]
[1720046815989,7.0656,141.53,141.48,17.6703]
[1720046816192,26.91,141.53,141.4,0.17]
[1720046816397,26.91,141.53,141.35,35.3708]
[1720046816398,26.91,141.53,141.39,0.17]
[1720046816585,45.34,141.52,141.41,17.6784]
[1720046816781,7.0676,141.5,141.43,7.0702]
[1720046816985,0.34,141.49,141.43,7.0702]
[1720046817585,7.4077,141.49,141.43,7.0702]
[1720046817790,26.91,141.48,141.38,17.6828]
[1720046817989,0.34,141.47,141.38,17.6828]
[1720046818573,7.4091,141.47,141.41,7.0715]
[1720046818778,7.0691,141.46,141.4,7.072]
[1720046818980,0.34,141.45,141.4,7.072]
[1720046819394,0.34,141.45,141.41,7.0715]
[1720046820482,7.4097,141.45,141.39,7.0726]
[1720046821075,0.34,141.45,141.38,17.6828]
[1720046821279,0.34,141.45,141.37,7.0732]
[1720046821280,7.0717,141.41,141.35,24.7605]
[1720046821499,0.34,141.42,141.35,17.686]
[1720046821700,0.17,141.41,141.35,17.686]
[1720046821996,0.34,141.41,141.35,17.686]
[1720046822389,0.34,141.41,141.37,17.6833]
[1720046822781,26.91,141.45,141.37,17.6833]
[1720046822983,7.071,141.43,141.37,24.7564]
[1720046823182,0.34,141.42,141.38,7.0729]
[1720046823804,0.34,141.41,141.38,7.0729]
[1720046824124,7.4107,141.43,141.38,7.0729]
[1720046824310,7.4107,141.43,141.37,24.7568]
[1720046824488,7.0713,141.42,141.37,24.7568]
[1720046824687,0.34,141.43,141.32,35.3798]
[1720046824688,0.34,141.41,141.35,7.0741]
[1720046824891,7.0727,141.39,141.34,17.6877]
[1720046825206,0.17,141.4,141.37,7.0735]
[1720046825381,0.17,141.41,141.37,7.0735]
[1720046825583,0.34,141.42,141.37,7.0735]
[1720046826017,29.7963,141.46,141.4,7.072]
[1720046826183,7.0682,141.48,141.43,7.0702]
[1720046826486,26.91,141.48,141.4,7.0717]
[1720046826687,26.91,141.48,141.36,17.6849]
[1720046826894,26.91,141.48,141.37,45.0]
[1720046827481,26.91,141.48,141.33,24.7639]
[1720046827482,7.073,141.39,141.33,24.7639]